lending/lending_fUSD_20240120
["ID","MTS","AMOUNT","RATE_DAILY","PERIOD"]
[312265829,1705725041108,-154.78800772,0.00024657,2]
[312265836,1705725041168,-299.1128838,0.00024657,2]
[312265849,1705725041287,-46.09910848,0.00024657,2]
[312265852,1705725041301,-514.16066427,0.00024657,2]
[312265854,1705725041314,-411.47473207,0.00024657,2]
[312265857,1705725041328,-500.0,0.00024657,2]
[312265859,1705725041341,-500.0,0.00024657,2]
[312265862,1705725041355,-500.0,0.00024657,2]
[312265864,1705725041367,-500.0,0.00024657,2]
[312265866,1705725041379,-500.0,0.00024657,2]
[312265869,1705725041392,-500.0,0.00024657,2]
[312265871,1705725041404,-500.0,0.00024657,2]
[312265874,1705725041418,-500.0,0.00024657,2]
[312265876,1705725041430,-500.0,0.00024657,2]
[312265878,1705725041443,-500.0,0.00024657,2]
[312265881,1705725041456,-170.36368452,0.00024657,2]
[312265883,1705725041469,-500.0,0.00024657,2]
[312265885,1705725041481,-500.0,0.00024657,2]
[312265888,1705725041493,-500.0,0.00024657,2]
[312265890,1705725041505,-367.16991141,0.00024657,2]
[312265892,1705725041518,-500.0,0.00024657,2]
[312265895,1705725041530,-500.0,0.00024657,2]
[312265897,1705725041542,-500.0,0.00024657,2]
[312265899,1705725041554,-500.0,0.00024657,2]
[312265902,1705725041566,-500.0,0.00024657,2]
[312265904,1705725041577,-500.0,0.00024657,2]
[312265906,1705725041589,-509.63724765,0.00024657,2]
[312265908,1705725041601,-500.0,0.00024657,2]
[312265911,1705725041612,-500.0,0.00024657,2]
[312265913,1705725041623,-511.03030993,0.00024657,2]
[312265915,1705725041635,-500.0,0.00024657,2]
[312265918,1705725041651,-202.16075046,0.00024657,2]
[312265920,1705725041665,-5040.87289188,0.00024657,2]
[312265923,1705725041678,-500.0,0.00024657,2]
[312265925,1705725041690,-500.0,0.00024657,2]
[312265928,1705725041704,-500.0,0.00024657,2]
[312265930,1705725041718,-500.0,0.00024657,2]
[312265933,1705725041731,-500.0,0.00024657,2]
[312265935,1705725041743,-166.66869933,0.00024657,2]
[312265938,1705725041761,-150.84155452,0.00024657,2]
[312265940,1705725041773,-514.66285248,0.00024657,2]
[312265943,1705725041785,-180.06174512,0.00024657,2]
[312266113,1705725043392,-313.09470256,0.00024657,2]
[312266133,1705725043571,-36.63624257,0.00024657,2]
[312266136,1705725043583,-463.36375743,0.00024657,2]
[312266138,1705725043598,-36.63624257,0.00024657,2]
[312266140,1705725043610,-500.0,0.00024657,2]
[312266143,1705725043621,-500.0,0.00024657,2]
[312266145,1705725043633,-500.0,0.00024657,2]
[312266147,1705725043644,-500.0,0.00024657,2]
[312266149,1705725043656,-441.89000155,0.00024657,2]
[312266156,1705725043710,-58.10999845,0.00024657,2]
[312266158,1705725043722,-500.0,0.00024657,2]
[312266161,1705725043734,-500.0,0.00024657,2]
[312266163,1705725043745,-500.0,0.00024657,2]
[312266165,1705725043757,-500.0,0.00024657,2]
[312266167,1705725043769,-47.44000155,0.00024657,2]
[312266170,1705725043785,-452.55999845,0.00024657,2]
[312266172,1705725043797,-500.0,0.00024657,2]
[312266175,1705725043809,-200.56444872,0.00024657,2]
[312266177,1705725043822,-500.0,0.00024657,2]
[312266179,1705725043836,-500.0,0.00024657,2]
[312266181,1705725043848,-500.0,0.00024657,2]
[312266184,1705725043860,-500.0,0.00024657,2]
[312266186,1705725043873,-505.81920632,0.00024657,2]
[312266188,1705725043885,-500.0,0.00024657,2]
[312266190,1705725043896,-426.01021938,0.00024657,2]
[312266445,1705725046397,-92.27251831,0.00024657,2]
[312266448,1705725046407,-162.62698443,0.00024657,2]
[312266451,1705725046416,-500.0,0.00024657,2]
[312266453,1705725046425,-500.0,0.00024657,2]
[312266455,1705725046434,-510.30940807,0.00024657,2]
[312266457,1705725046445,-23.16701215,0.00024657,2]
[312266459,1705725046455,-516.11981164,0.00024657,2]
[312266461,1705725046465,-533.82205226,0.00024657,2]
[312266463,1705725046474,-501.79522942,0.00024657,2]
[312266465,1705725046484,-500.0,0.00024657,2]
[312266467,1705725046493,-500.0,0.00024657,2]
[312266469,1705725046502,-285.55343051,0.00024657,2]
[312266471,1705725046511,-500.0,0.00024657,2]
[312266473,1705725046520,-500.0,0.00024657,2]
[312266476,1705725046529,-56.04046402,0.00024657,2]
[312266479,1705725046542,-443.95953598,0.00024657,2]
[312266482,1705725046551,-144.31610497,0.00024657,2]
[312266495,1705725046598,-77.63425294,0.00024657,2]
[312266498,1705725046608,-500.0,0.00024657,2]
[312266501,1705725046617,-491.41006321,0.00024657,2]
[312266504,1705725046626,-170.71473079,0.00024657,2]
[312266515,1705725046676,-329.28526921,0.00024657,2]
[312266518,1705725046685,-33.13443087,0.00024657,2]
[312266531,1705725046741,-466.86556913,0.00024657,2]
[312266534,1705725046750,-500.0,0.00024657,2]
[312266537,1705725046759,-500.0,0.00024657,2]
[312266540,1705725046769,-500.0,0.00024657,2]
[312266543,1705725046778,-500.0,0.00024657,2]
[312266546,1705725046787,-500.0,0.00024657,2]
[312266549,1705725046796,-500.0,0.00024657,2]
[312266552,1705725046805,-520.89836151,0.00024657,2]
[312266554,1705725046815,-500.0,0.00024657,2]
[312266556,1705725046823,-500.0,0.00024657,2]
[312266558,1705725046833,-500.0,0.00024657,2]
[312266561,1705725046843,-500.0,0.00024657,2]
[312266564,1705725046852,-500.0,0.00024657,2]
[312266567,1705725046862,-500.0,0.00024657,2]
[312266570,1705725046871,-651.74,0.00024657,2]
[312266573,1705725046880,-651.74,0.00024657,2]
[312266575,1705725046889,-500.0,0.00024657,2]
[312266578,1705725046899,-500.0,0.00024657,2]
[312266581,1705725046908,-509.1544529,0.00024657,2]
[312266584,1705725046917,-393.46548946,0.00024657,2]
[312266587,1705725046930,-500.0,0.00024657,2]
[312266590,1705725046939,-500.0,0.00024657,2]
[312266593,1705725046948,-500.0,0.00024657,2]
[312266596,1705725046959,-500.0,0.00024657,2]
[312266599,1705725046969,-500.0,0.00024657,2]
[312266602,1705725046978,-500.0,0.00024657,2]
[312266605,1705725046988,-500.0,0.00024657,2]
[312266608,1705725046997,-500.0,0.00024657,2]
[312266611,1705725047009,-500.0,0.00024657,2]
[312266614,1705725047019,-500.0,0.00024657,2]
[312266617,1705725047028,-500.0,0.00024657,2]
[312266620,1705725047037,-500.0,0.00024657,2]
[312266622,1705725047046,-500.0,0.00024657,2]
[312266624,1705725047055,-500.0,0.00024657,2]
[312266626,1705725047064,-21.47878334,0.00024657,2]
[312266629,1705725047077,-302.03380715,0.00024657,2]
[312266912,1705726231533,-370.58249198,0.00018969,2]
[312266913,1705726231542,-734.0,0.00018969,2]
[312266914,1705726231552,-206.0,0.0001897,2]
[312266915,1705726231562,-639.05,0.00021153,2]
[312266916,1705726231573,-621.53072187,0.00021969,2]
[312266917,1705726231593,-348.02763054,0.00021969,2]
[312266918,1705726231603,-206.0,0.00022389,6]
[312266919,1705726231612,-207.0,0.00022714,2]
[312266920,1705726231624,-194.08,0.00022999,2]
[312266921,1705726231636,-247.23,0.00023006,2]
[312266922,1705726231646,-28.00591363,0.00023026,2]
[312266923,1705726231739,-280.0,0.00023026,2]
[312266924,1705726231751,-378.44094283,0.00023026,2]
[312266925,1705726231767,-594.85314354,0.00023026,2]
[312266926,1705726231776,-174.9439859,0.00023099,2]
[312266927,1705726231785,-150.4,0.00023193,2]
[312266928,1705726231795,-313.43,0.00023199,2]
[312266929,1705726231805,-174.9439858,0.00023262,2]
[312266930,1705726231817,-284.78,0.0002328,2]
[312266931,1705726231826,-150.0,0.00023311,2]
[312266932,1705726231836,-95.98063498,0.00023311,2]
[312266933,1705726231847,-54.01936502,0.00023311,2]
[312266934,1705726231857,-6210.0,0.00023312,2]
[312266935,1705726231868,-155.49,0.00023365,2]
[312266936,1705726231877,-165.91,0.00023387,2]
[312266937,1705726231886,-573.72328309,0.00023417,2]
[312266938,1705726231904,-65.32671691,0.00023417,2]
[312266939,1705726231913,-174.9439858,0.00023426,2]
[312266940,1705726231923,-163.02,0.00023487,2]
[312266941,1705726231934,-150.0,0.00023557,2]
[312266942,1705726231943,-174.9439858,0.00023589,2]
[312266943,1705726231954,-1000.0,0.00023669,2]
[312266944,1705726231964,-1044.70233478,0.00023694,2]
[312266978,1705726237604,-423.356324,0.00023557,2]
[312266979,1705726237658,-445.94319877,0.00023557,2]
[312266980,1705726237670,-229.26047723,0.00023557,2]
[312266981,1705726237679,-174.9439858,0.00023752,2]
[312266982,1705726237689,-165.91,0.00023788,2]
[312266983,1705726237699,-174.9439858,0.00023915,2]
[312266984,1705726237708,-169.99,0.00023952,2]
[312266985,1705726237717,-160.83,0.00023974,2]
[312266986,1705726237726,-174.9439858,0.00024079,2]
[312266987,1705726237736,-219.90355198,0.00024105,2]
[312266988,1705726237745,-165.91,0.00024188,2]
[312266989,1705726237754,-250.0,0.00024205,2]
[312266990,1705726237763,-174.9439858,0.00024242,2]
[312266991,1705726237773,-174.9439858,0.00024405,2]
[312266992,1705726237782,-2669.70868688,0.00024409,2]
[312266993,1705726237825,-1773.62218077,0.00024409,2]
[312266994,1705726237835,-1093.55504327,0.00024444,4]
[312266995,1705726237845,-284.78,0.00024444,2]
[312266996,1705726237854,-150.00000001,0.00024464,2]
[312266997,1705726237863,-465.24189115,0.00024479,2]
[312266998,1705726237873,-169.99,0.00024527,2]
[312266999,1705726237882,-2032.2889,0.00024557,2]
[312267000,1705726237891,-1346.8455,0.00024557,2]
[312267001,1705726237901,-500.0,0.00024557,2]
[312267002,1705726237910,-3032.3333,0.00024557,2]
[312267003,1705726237919,-5000.0,0.00024557,2]
[312267004,1705726237928,-35918.4887617,0.00024557,2]
[312267005,1705726237982,-19636.5112383,0.00024557,2]
[312267007,1705726237991,-174.9439858,0.00024568,2]
[312267009,1705726238000,-155.49,0.00024582,2]
[312267011,1705726238010,-165.91,0.00024589,2]
[312267013,1705726238019,-163.02,0.00024592,2]
[312267015,1705726238028,-436.82877984,0.00024625,3]
[312267017,1705726238037,-321.53377527,0.00024625,3]
[312267018,1705726238046,-188.19062501,0.00024625,3]
[312267020,1705726238056,-178.96416733,0.00024625,3]
[312267022,1705726238066,-178.96416733,0.00024625,3]
[312267024,1705726238075,-169.83403549,0.00024625,3]
[312267026,1705726238084,-561.3232005,0.00024625,3]
[312267028,1705726238093,-2025.72108988,0.0002465,2]
[312267032,1705726238114,-4887.83082478,0.0002465,2]
[312267236,1705726240156,-352.2755223,0.0002465,2]
[312267239,1705726240168,-622.13004037,0.0002465,2]
[312267241,1705726240181,-446.53456022,0.0002465,2]
[312267243,1705726240191,-2177.52909011,0.00024655,2]
[312267313,1705726240839,-96.90500989,0.00024655,2]
[312267315,1705726240850,-527.3566788,0.00024655,2]
[312267317,1705726240859,-1857.06616671,0.00024655,2]
[312267327,1705726240948,-544.13000421,0.00024655,2]
[312267500,1705726242585,-581.13349343,0.00024655,2]
[312267502,1705726242594,-204.01256151,0.00024655,2]
[312267504,1705726242603,-3946.83572309,0.00024655,2]
[312267506,1705726242615,-53.16427691,0.00024655,2]
[312267508,1705726242624,-150.0,0.00024656,2]
[312267510,1705726242633,-205.86065931,0.00024657,2]
[312267517,1705726242692,-308.06368528,0.00024657,2]
[312267519,1705726242701,-472.74509326,0.00024657,2]
[312267522,1705726242714,-29.72483068,0.00024657,2]
[312267524,1705726242723,-508.65168203,0.00024657,2]
[312267526,1705726242732,-500.0,0.00024657,2]
[312267528,1705726242741,-528.77286037,0.00024657,2]
[312267530,1705726242750,-500.0,0.00024657,2]
[312267532,1705726242760,-478.10995106,0.00024657,2]
[312267534,1705726242769,-500.0,0.00024657,2]
[312267536,1705726242779,-500.0,0.00024657,2]
[312267538,1705726242788,-500.0,0.00024657,2]
[312267540,1705726242797,-500.0,0.00024657,2]
[312267542,1705726242810,-500.0,0.00024657,2]
[312267544,1705726242820,-500.0,0.00024657,2]
[312267546,1705726242829,-500.0,0.00024657,2]
[312267548,1705726242838,-500.0,0.00024657,2]
[312267550,1705726242848,-500.0,0.00024657,2]
[312267552,1705726242857,-500.0,0.00024657,2]
[312267555,1705726242867,-500.0,0.00024657,2]
[312267557,1705726242876,-119.30813475,0.00024657,2]
[312267559,1705726242894,-337.27249606,0.00024657,2]
[312267562,1705726242905,-43.41936919,0.00024657,2]
[312267564,1705726242915,-500.0,0.00024657,2]
[312267566,1705726242925,-390.38,0.00024657,2]
[312267568,1705726242934,-500.0,0.00024657,2]
[312267570,1705726242944,-500.0,0.00024657,2]
[312267572,1705726242953,-500.0,0.00024657,2]
[312267574,1705726242962,-500.0,0.00024657,2]
[312267576,1705726242972,-507.71543018,0.00024657,2]
[312267578,1705726242981,-500.0,0.00024657,2]
[312267580,1705726242990,-500.0,0.00024657,2]
[312267582,1705726243000,-498.29361275,0.00024657,2]
[312267584,1705726243009,-511.43804945,0.00024657,2]
[312267586,1705726243019,-500.0,0.00024657,2]
[312267588,1705726243028,-254.37015597,0.00024657,2]
[312267590,1705726243037,-513.89219408,0.00024657,2]
[312267592,1705726243047,-500.0,0.00024657,2]
[312267594,1705726243056,-500.0,0.00024657,2]
[312267596,1705726243066,-500.0,0.00024657,2]
[312267598,1705726243077,-642.60173908,0.00024657,2]
[312267600,1705726243086,-500.0,0.00024657,2]
[312267602,1705726243096,-272.26486435,0.00024657,2]
[312267605,1705726243109,-227.73513565,0.00024657,2]
[312267607,1705726243119,-75.11066064,0.00024657,2]
[312267609,1705726243130,-446.47632124,0.00024657,2]
[312267611,1705726243143,-500.0,0.00024657,2]
[312267614,1705726243152,-500.0,0.00024657,2]
[312267616,1705726243162,-500.0,0.00024657,2]
[312267618,1705726243172,-500.0,0.00024657,2]
[312267620,1705726243182,-500.0,0.00024657,2]
[312267622,1705726243192,-513.57539023,0.00024657,2]
[312267624,1705726243201,-500.0,0.00024657,2]
[312267626,1705726243211,-500.0,0.00024657,2]
[312267628,1705726243221,-510.92705978,0.00024657,2]
[312267630,1705726243231,-504.85840515,0.00024657,2]
[312267632,1705726243241,-500.0,0.00024657,2]
[312267634,1705726243251,-500.0,0.00024657,2]
[312267636,1705726243261,-512.04252772,0.00024657,2]
[312267638,1705726243271,-512.94324613,0.00024657,2]
[312267640,1705726243281,-525.8381687,0.00024657,2]
[312267642,1705726243291,-507.09010066,0.00024657,2]
[312267644,1705726243301,-500.0,0.00024657,2]
[312267646,1705726243309,-500.0,0.00024657,2]
[312267648,1705726243321,-212.81214339,0.00024657,2]
[312267651,1705726243344,-292.92366016,0.00024657,2]
[312267653,1705726243354,-528.24432519,0.00024657,2]
[312267655,1705726243363,-500.0,0.00024657,2]
[312267657,1705726243374,-500.0,0.00024657,2]
[312267659,1705726243383,-508.38136871,0.00024657,2]
[312267661,1705726243392,-500.0,0.00024657,2]
[312267663,1705726243402,-500.0,0.00024657,2]
[312267666,1705726243413,-491.51192068,0.00024657,2]
[312267668,1705726243426,-8.48807932,0.00024657,2]
[312267669,1705726243435,-500.0,0.00024657,2]
[312267670,1705726243443,-513.9922247,0.00024657,2]
[312267671,1705726243452,-513.93369217,0.00024657,2]
[312267672,1705726243461,-500.0,0.00024657,2]
[312267673,1705726243470,-500.0,0.00024657,2]
[312267674,1705726243482,-500.0,0.00024657,2]
[312267675,1705726243491,-500.0,0.00024657,2]
[312267676,1705726243502,-500.0,0.00024657,2]
[312267677,1705726243511,-505.05469631,0.00024657,2]
[312267678,1705726243523,-557.23555747,0.00024657,2]
[312267680,1705726243532,-503.56421947,0.00024657,2]
[312267682,1705726243541,-500.0,0.00024657,2]
[312267684,1705726243550,-608.09360966,0.00024657,2]
[312267686,1705726243559,-359.86701564,0.00024657,2]
[312267688,1705726243574,-140.13298436,0.00024657,2]
[312267690,1705726243583,-500.0,0.00024657,2]
[312267692,1705726243592,-500.0,0.00024657,2]
[312267694,1705726243602,-500.0,0.00024657,2]
[312267696,1705726243611,-500.0,0.00024657,2]
[312267698,1705726243620,-529.17089646,0.00024657,2]
[312267700,1705726243629,-500.0,0.00024657,2]
[312267702,1705726243638,-500.0,0.00024657,2]
[312267704,1705726243648,-500.0,0.00024657,2]
[312267706,1705726243657,-330.69611918,0.00024657,2]
[312267709,1705726243669,-169.30388082,0.00024657,2]
[312267711,1705726243679,-500.0,0.00024657,2]
[312267713,1705726243689,-183.20189882,0.00024657,2]
[312267715,1705726243699,-500.0,0.00024657,2]
[312267717,1705726243708,-500.0,0.00024657,2]
[312267719,1705726243718,-500.0,0.00024657,2]
[312267721,1705726243727,-593.64555795,0.00024657,2]
[312267723,1705726243736,-370.05936812,0.00024657,2]
[312267725,1705726243746,-500.0,0.00024657,2]
[312267727,1705726243755,-16.5404162,0.00024657,2]
[312267730,1705726243767,-483.4595838,0.00024657,2]
[312267732,1705726243776,-500.0,0.00024657,2]
[312267734,1705726243786,-500.0,0.00024657,2]
[312267736,1705726243795,-500.0,0.00024657,2]
[312267738,1705726243805,-500.0,0.00024657,2]
[312267740,1705726243814,-521.25809762,0.00024657,2]
[312267742,1705726243824,-500.0,0.00024657,2]
[312267744,1705726243833,-500.0,0.00024657,2]
[312267746,1705726243842,-503.99144209,0.00024657,2]
[312267748,1705726243852,-263.88228501,0.00024657,2]
[312267750,1705726243861,-389.86863138,0.00024657,2]
[312267755,1705726243894,-118.9456935,0.00024657,2]
[312267757,1705726243904,-500.0,0.00024657,2]
[312267759,1705726243913,-500.0,0.00024657,2]
[312267761,1705726243922,-519.34457507,0.00024657,2]
[312267763,1705726243931,-500.0,0.00024657,2]
[312267765,1705726243941,-500.0,0.00024657,2]
[312267767,1705726243950,-509.16529781,0.00024657,2]
[312267769,1705726243960,-500.0,0.00024657,2]
[312267771,1705726243969,-512.21171602,0.00024657,2]
[312267773,1705726243979,-500.0,0.00024657,2]
[312267775,1705726243988,-500.0,0.00024657,2]
[312267777,1705726243997,-500.0,0.00024657,2]
[312267779,1705726244007,-500.0,0.00024657,2]
[312267781,1705726244016,-500.0,0.00024657,2]
[312267783,1705726244026,-500.0,0.00024657,2]
[312267785,1705726244035,-500.0,0.00024657,2]
[312267787,1705726244044,-514.66334562,0.00024657,2]
[312267789,1705726244053,-500.0,0.00024657,2]
[312267819,1705726244321,-500.0,0.00024657,2]
[312267821,1705726244337,-500.0,0.00024657,2]
[312267823,1705726244346,-500.0,0.00024657,2]
[312267825,1705726244355,-500.0,0.00024657,2]
[312267827,1705726244366,-500.0,0.00024657,2]
[312267829,1705726244375,-500.0,0.00024657,2]
[312267831,1705726244383,-500.0,0.00024657,2]
[312267833,1705726244392,-510.8839393,0.00024657,2]
[312267835,1705726244402,-500.0,0.00024657,2]
[312267837,1705726244412,-526.87369088,0.00024657,2]
[312267839,1705726244421,-500.0,0.00024657,2]
[312267841,1705726244430,-500.0,0.00024657,2]
[312267843,1705726244440,-500.0,0.00024657,2]
[312267845,1705726244448,-500.0,0.00024657,2]
[312267847,1705726244457,-513.65404172,0.00024657,2]
[312267849,1705726244466,-500.0,0.00024657,2]
[312267851,1705726244475,-500.0,0.00024657,2]
[312267853,1705726244485,-500.0,0.00024657,2]
[312267855,1705726244496,-500.0,0.00024657,2]
[312267857,1705726244505,-500.0,0.00024657,2]
[312267859,1705726244514,-500.0,0.00024657,2]
[312267861,1705726244523,-500.0,0.00024657,2]
[312267863,1705726244531,-500.0,0.00024657,2]
[312267865,1705726244542,-500.0,0.00024657,2]
[312267867,1705726244551,-500.0,0.00024657,2]
[312267869,1705726244561,-500.0,0.00024657,2]
[312267871,1705726244570,-500.0,0.00024657,2]
[312267873,1705726244579,-500.0,0.00024657,2]
[312267875,1705726244588,-500.0,0.00024657,2]
[312267877,1705726244597,-500.0,0.00024657,2]
[312267879,1705726244607,-500.0,0.00024657,2]
[312267881,1705726244616,-500.0,0.00024657,2]
[312267883,1705726244625,-340.37938436,0.00024657,2]
[312267885,1705726244634,-500.0,0.00024657,2]
[312267887,1705726244643,-500.0,0.00024657,2]
[312267889,1705726244652,-500.0,0.00024657,2]
[312267891,1705726244661,-500.0,0.00024657,2]
[312267893,1705726244670,-500.0,0.00024657,2]
[312267895,1705726244678,-622.65378746,0.00024657,2]
[312267897,1705726244688,-500.0,0.00024657,2]
[312267899,1705726244697,-500.0,0.00024657,2]
[312267901,1705726244706,-509.41777188,0.00024657,2]
[312267903,1705726244716,-500.0,0.00024657,2]
[312267905,1705726244725,-500.0,0.00024657,2]
[312267907,1705726244734,-434.52767606,0.00024657,2]
[312267909,1705726244743,-500.0,0.00024657,2]
[312267912,1705726244753,-500.0,0.00024657,2]
[312267913,1705726244762,-500.0,0.00024657,2]
[312267916,1705726244771,-504.68078868,0.00024657,2]
[312267918,1705726244781,-500.0,0.00024657,2]
[312267919,1705726244791,-590.10570654,0.00024657,2]
[312267921,1705726244800,-500.0,0.00024657,2]
[312267924,1705726244810,-500.0,0.00024657,2]
[312267926,1705726244818,-500.0,0.00024657,2]
[312267928,1705726244828,-500.0,0.00024657,2]
[312267930,1705726244837,-500.0,0.00024657,2]
[312267931,1705726244846,-500.0,0.00024657,2]
[312267934,1705726244856,-500.0,0.00024657,2]
[312267936,1705726244865,-500.0,0.00024657,2]
[312267937,1705726244874,-500.0,0.00024657,2]
[312267940,1705726244883,-500.0,0.00024657,2]
[312267942,1705726244893,-500.0,0.00024657,2]
[312267944,1705726244902,-500.0,0.00024657,2]
[312267946,1705726244911,-500.0,0.00024657,2]
[312267947,1705726244920,-500.0,0.00024657,2]
[312267949,1705726244929,-500.0,0.00024657,2]
[312267952,1705726244939,-535.44047407,0.00024657,2]
[312267954,1705726244948,-500.0,0.00024657,2]
[312267956,1705726244958,-500.0,0.00024657,2]
[312267957,1705726244966,-568.18351112,0.00024657,2]
[312267960,1705726244976,-500.0,0.00024657,2]
[312267962,1705726244985,-500.0,0.00024657,2]
[312267964,1705726244995,-163.56790926,0.00024657,2]
[312267966,1705726245011,-336.43209074,0.00024657,2]
[312267968,1705726245022,-264.86876015,0.00024657,2]
[312267971,1705726245033,-235.13123985,0.00024657,2]
[312267973,1705726245042,-530.2991712,0.00024657,2]
[312267975,1705726245051,-4.1882391,0.00024657,2]
[312267977,1705726245063,-495.8117609,0.00024657,2]
[312267979,1705726245073,-313.51724892,0.00024657,2]
[312267981,1705726245082,-277.44,0.00024657,2]
[312267983,1705726245091,-294.2877529,0.00024657,2]
[312268051,1705726246198,-205.7122471,0.00024657,2]
[312268052,1705726246209,-500.0,0.00024657,2]
[312268053,1705726246219,-294.21593912,0.00024657,2]
[312268054,1705726246239,-205.78406088,0.00024657,2]
[312268055,1705726246249,-138.21034222,0.00024657,2]
[312268056,1705726246260,-361.78965778,0.00024657,2]
[312268057,1705726246270,-49.76593912,0.00024657,2]
[312268148,1705727136734,-639.11,0.00021287,2]
[312268149,1705727136755,-370.58249198,0.00021848,2]
[312268150,1705727136777,-206.0,0.00022808,2]
[312268151,1705727136798,-250.0,0.00023209,2]
[312268152,1705727136822,-163.4,0.00023278,2]
[312268195,1705727176569,370.90750802,0.00023178,2]
[312268196,1705727176595,2000.0,0.00023178,2]
[312268197,1705727176620,702.91469898,0.00023178,2]
[312268242,1705727302624,197.32,0.00023273,2]
[312268248,1705727346835,262.71238706,0.00022048,2]
[312268260,1705727431745,-357.61614109,0.00023297,2]
[312268261,1705727431799,-12.96635089,0.00023297,2]
[312268262,1705727431810,-160.76705805,0.00023298,2]
[312268263,1705727431819,-200.0,0.00023313,2]
[312268264,1705727431828,-878.84,0.00023325,2]
[312268265,1705727431838,-844.32,0.00023343,2]
[312268266,1705727431848,-355.87,0.00023374,2]
[312268267,1705727431859,-1179.92,0.00023398,2]
[312268268,1705727431869,-1452.38088315,0.00023422,2]
[312268269,1705727431879,-160.83,0.0002352,2]
[312268270,1705727431890,-166.83,0.00023536,2]
[312268271,1705727431901,-639.11,0.00023551,2]
[312268272,1705727431910,-160.76705802,0.00023562,2]
[312268273,1705727431920,-161.09,0.00023696,2]
[312268274,1705727431931,-163.4,0.00023743,2]
[312268275,1705727431941,-179.55,0.00023807,2]
[312268276,1705727431950,-160.76705802,0.00023826,2]
[312268277,1705727431960,-1000.0,0.0002385,2]
[312268278,1705727431970,-160.76705802,0.0002409,2]
[312268279,1705727431979,-547.0,0.00024166,2]
[312268280,1705727431989,-272.16670442,0.00024205,2]
[312268281,1705727431999,-163.4,0.00024209,2]
[312268282,1705727432009,-160.76705802,0.00024354,2]
[312268283,1705727432018,-4164.62324235,0.00024457,2]
[312268284,1705727432035,-3696.08,0.00024457,2]
[312268285,1705727432047,-4546.20675765,0.00024457,2]
[312268286,1705727432057,-577.30717962,0.0002449,2]
[312268287,1705727432074,-20.81752038,0.0002449,2]
[312268288,1705727432083,-878.84,0.00024491,2]
[312268289,1705727432093,-319.87113879,0.00024498,2]
[312268290,1705727432103,-1709.67514269,0.00024498,2]
[312268291,1705727432116,-26.11226233,0.00024498,2]
[312268292,1705727432126,-306.97180835,0.00024499,2]
[312268293,1705727432136,-233.36069692,0.000245,2]
[312268298,1705727432201,-993.79654298,0.000245,2]
[312268301,1705727432214,-421.07761078,0.000245,2]
[312268306,1705727432239,-597.28949344,0.000245,2]
[312268311,1705727432283,-10339.74065626,0.000245,2]
[312268314,1705727432295,-987.38231631,0.000245,2]
[312268316,1705727432308,-735.1422141,0.000245,2]
[312268318,1705727432320,-1158.45306986,0.000245,2]
[312268321,1705727432341,-3285.77118433,0.000245,2]
[312268323,1705727432353,-6718.84925178,0.000245,2]
[312268324,1705727432365,-834.15283232,0.000245,2]
[312268325,1705727432386,-2464.8213102,0.000245,2]
[312268346,1705727437785,-523.73272136,0.000245,2]
[312268350,1705727437848,-2464.43009936,0.000245,2]
[312268351,1705727437859,-2877.0,0.000245,2]
[312268352,1705727437869,-355.87,0.00024543,2]
[312268353,1705727437878,-204.470389,0.00024546,2]
[312268354,1705727437887,-1908.0035,0.00024557,2]